fUSD/lending_fUSD_20240327
["ID","MTS","AMOUNT","RATE_DAILY","PERIOD"]
[320749503,1711545051845,-500.0,0.00054794,120]
[320749504,1711545051855,-522.89,0.00054794,120]
[320749505,1711545051867,-2029.21,0.00054794,120]
[320749506,1711545051879,-502.57191438,0.00054794,120]
[320749507,1711545051888,-502.07744116,0.00054794,120]
[320749508,1711545051898,-500.0,0.00054794,120]
[320749509,1711545051907,-500.0,0.00054794,120]
[320749510,1711545051917,-500.0,0.00054794,120]
[320749511,1711545051927,-500.0,0.00054794,120]
[320749512,1711545051936,-500.0,0.00054794,120]
[320749513,1711545051946,-500.0,0.00054794,120]
[320749514,1711545051956,-500.0,0.00054794,120]
[320749515,1711545051965,-500.0,0.00054794,120]
[320749516,1711545051975,-500.0,0.00054794,120]
[320749517,1711545051985,-500.0,0.00054794,120]
[320749518,1711545051994,-500.0,0.00054794,120]
[320749519,1711545052005,-500.0,0.00054794,120]
[320749520,1711545052015,-500.0,0.00054794,120]
[320749521,1711545052026,-500.0,0.00054794,120]
[320749522,1711545052036,-500.0,0.00054794,120]
[320749523,1711545052045,-1002.56,0.00054794,120]
[320749524,1711545052055,-564.14,0.00054794,120]
[320749525,1711545052065,-500.0,0.00054794,120]
[320749526,1711545052076,-696.63,0.00054794,120]
[320749527,1711545052085,-500.0,0.00054794,120]
[320749528,1711545052095,-500.0,0.00054794,120]
[320749529,1711545052105,-499.3669036,0.00054794,120]
[320749530,1711545052116,-500.0,0.00054794,120]
[320749531,1711545052127,-500.0,0.00054794,120]
[320749532,1711545052137,-500.0,0.00054794,120]
[320749533,1711545052147,-500.0,0.00054794,120]
[320749534,1711545052156,-500.0,0.00054794,120]
[320749535,1711545052165,-500.0,0.00054794,120]
[320749536,1711545052175,-500.0,0.00054794,120]
[320749537,1711545052185,-1831.21,0.00054794,120]
[320749538,1711545052194,-417.07,0.00054794,120]
[320749539,1711545052203,-500.0,0.00054794,120]
[320749540,1711545052213,-500.0,0.00054794,120]
[320749541,1711545052223,-215.52844488,0.00054794,120]
[320749542,1711545052233,-500.0,0.00054794,120]
[320749543,1711545052242,-500.0,0.00054794,120]
[320749544,1711545052252,-500.0,0.00054794,120]
[320749545,1711545052262,-500.0,0.00054794,120]
[320749546,1711545052271,-500.0,0.00054794,120]
[320749547,1711545052281,-500.0,0.00054794,120]
[320749548,1711545052290,-501.83740906,0.00054794,120]
[320749549,1711545052299,-500.0,0.00054794,120]
[320749550,1711545052309,-500.0,0.00054794,120]
[320749551,1711545052320,-500.0,0.00054794,120]
[320749552,1711545052330,-500.0,0.00054794,120]
[320749553,1711545052339,-500.0,0.00054794,120]
[320749554,1711545052351,-762.75,0.00054794,120]
[320749555,1711545052361,-500.0,0.00054794,120]
[320749556,1711545052424,-887.04,0.00054794,120]
[320749557,1711545052435,-500.0,0.00054794,120]
[320749558,1711545052444,-500.0,0.00054794,120]
[320749559,1711545052454,-500.0,0.00054794,120]
[320749560,1711545052463,-2280.42,0.00054794,120]
[320749561,1711545052473,-501.68562043,0.00054794,120]
[320749562,1711545052483,-500.0,0.00054794,120]
[320749563,1711545052492,-500.0,0.00054794,120]
[320749564,1711545052501,-500.0,0.00054794,120]
[320749565,1711545052511,-500.0,0.00054794,120]
[320749566,1711545052521,-500.0,0.00054794,120]
[320749567,1711545052530,-761.49,0.00054794,120]
[320749568,1711545052539,-572.49,0.00054794,120]
[320749569,1711545052548,-500.0,0.00054794,120]
[320749570,1711545052558,-666.95,0.00054794,120]
[320749571,1711545052567,-989.63,0.00054794,120]
[320749572,1711545052576,-500.0,0.00054794,120]
[320749573,1711545052585,-2038.73,0.00054794,120]
[320749574,1711545052594,-500.0,0.00054794,120]
[320749575,1711545052603,-500.0,0.00054794,120]
[320749576,1711545052612,-966.04,0.00054794,120]
[320749577,1711545052623,-7410.27,0.00054794,120]
[320749578,1711545052632,-451.82930917,0.00054794,120]
[320749579,1711545052641,-591.2,0.00054794,120]
[320749580,1711545052650,-1021.61,0.00054794,120]
[320749581,1711545052658,-500.0,0.00054794,120]
[320749582,1711545052667,-500.0,0.00054794,120]
[320749583,1711545052676,-917.72,0.00054794,120]
[320749584,1711545052685,-500.0,0.00054794,120]
[320749585,1711545052694,-1185.67,0.00054794,120]
[320749586,1711545052704,-500.0,0.00054794,120]
[320749587,1711545052713,-500.0,0.00054794,120]
[320749588,1711545052723,-500.0,0.00054794,120]
[320749589,1711545052732,-4131.44,0.00054794,120]
[320749590,1711545052741,-500.0,0.00054794,120]
[320749591,1711545052750,-500.0,0.00054794,120]
[320749592,1711545052759,-495.64243937,0.00054794,120]
[320749593,1711545052770,-500.0,0.00054794,120]
[320749594,1711545052782,-500.0,0.00054794,120]
[320749595,1711545052792,-1840.41,0.00054794,120]
[320749596,1711545052803,-500.0,0.00054794,120]
[320749597,1711545052814,-500.0,0.00054794,120]
[320749598,1711545052825,-506.03034806,0.00054794,120]
[320749599,1711545052836,-2021.69,0.00054794,120]
[320749600,1711545052846,-500.0,0.00054794,120]
[320749601,1711545052856,-500.0,0.00054794,120]
[320749602,1711545052866,-500.0,0.00054794,120]
[320749603,1711545052881,-3117.06,0.00054794,120]
[320749604,1711545052898,-1046.06,0.00054794,120]
[320749605,1711545052924,-881.25,0.00054794,120]
[320749606,1711545052949,-500.0,0.00054794,120]
[320749607,1711545052967,-743.64,0.00054794,120]
[320749608,1711545052977,-500.0,0.00054794,120]
[320749609,1711545052987,-500.0,0.00054794,120]
[320749610,1711545052997,-6836.54,0.00054794,120]
[320749611,1711545053009,-500.0,0.00054794,120]
[320749612,1711545053020,-2764.61,0.00054794,120]
[320749613,1711545053030,-804.84,0.00054794,120]
[320749614,1711545053040,-510.87227896,0.00054794,120]
[320749615,1711545053050,-502.97311018,0.00054794,120]
[320749616,1711545053061,-500.0,0.00054794,120]
[320749617,1711545053070,-500.0,0.00054794,120]
[320749618,1711545053080,-1965.13,0.00054794,120]
[320749619,1711545053090,-500.0,0.00054794,120]
[320749620,1711545053100,-500.0,0.00054794,120]
[320749621,1711545053111,-4896.21,0.00054794,120]
[320749622,1711545053123,-501.09,0.00054794,120]
[320749623,1711545053132,-503.88103075,0.00054794,120]
[320749624,1711545053142,-500.0,0.00054794,120]
[320749625,1711545053151,-797.84,0.00054794,120]
[320749626,1711545053160,-509.03370832,0.00054794,120]
[320749627,1711545053170,-500.0,0.00054794,120]
[320749628,1711545053180,-500.0,0.00054794,120]
[320749629,1711545053190,-1043.28,0.00054794,120]
[320749630,1711545053200,-1995.94,0.00054794,120]
[320749631,1711545053210,-500.0,0.00054794,120]
[320749632,1711545053221,-500.0,0.00054794,120]
[320749633,1711545053231,-500.0,0.00054794,120]
[320749634,1711545053242,-500.0,0.00054794,120]
[320749635,1711545053252,-2893.0,0.00054794,120]
[320749636,1711545053263,-15249.71,0.00054794,120]
[320749637,1711545053273,-500.0,0.00054794,120]
[320749638,1711545053283,-558.52,0.00054794,120]
[320749639,1711545053292,-547.99,0.00054794,120]
[320749640,1711545053302,-500.0,0.00054794,120]
[320749641,1711545053312,-500.0,0.00054794,120]
[320749642,1711545053322,-75992.14,0.00054794,120]
[320749643,1711545053332,-500.0,0.00054794,120]
[320749644,1711545053341,-3596.62,0.00054794,120]
[320749645,1711545053351,-503.76982645,0.00054794,120]
[320749646,1711545053361,-500.0,0.00054794,120]
[320749647,1711545053372,-500.0,0.00054794,120]
[320749648,1711545053381,-3332.62,0.00054794,120]
[320749649,1711545053391,-500.0,0.00054794,120]
[320749650,1711545053400,-4816.18,0.00054794,120]
[320749651,1711545053410,-500.0,0.00054794,120]
[320749652,1711545053420,-1863.41,0.00054794,120]
[320749653,1711545053430,-500.0,0.00054794,120]
[320749654,1711545053440,-7622.66,0.00054794,120]
[320749655,1711545053449,-311.81559997,0.00054794,120]
[320749656,1711545053459,-1308.14,0.00054794,120]
[320749657,1711545053468,-500.0,0.00054794,120]
[320749658,1711545053478,-2387.05,0.00054794,120]
[320749659,1711545053488,-6076.26,0.00054794,120]
[320749660,1711545053498,-500.0,0.00054794,120]
[320749661,1711545053507,-1319.68,0.00054794,120]
[320749662,1711545053517,-507.6178546,0.00054794,120]
[320749663,1711545053527,-500.0,0.00054794,120]
[320749664,1711545053537,-500.0,0.00054794,120]
[320749665,1711545053547,-5368.72,0.00054794,120]
[320749666,1711545053557,-500.0,0.00054794,120]
[320749667,1711545053566,-5144.72,0.00054794,120]
[320749668,1711545053576,-500.0,0.00054794,120]
[320749669,1711545053586,-2956.7,0.00054794,120]
[320749670,1711545053596,-500.0,0.00054794,120]
[320749671,1711545053605,-989.52,0.00054794,120]
[320749672,1711545053615,-518.82,0.00054794,120]
[320749673,1711545053630,-500.0,0.00054794,120]
[320749674,1711545053639,-500.0,0.00054794,120]
[320749675,1711545053648,-3326.27,0.00054794,120]
[320749676,1711545053657,-500.0,0.00054794,120]
[320749677,1711545053667,-3041.64,0.00054794,120]
[320749678,1711545053677,-20346.3,0.00054794,120]
[320749679,1711545053686,-500.0,0.00054794,120]
[320749680,1711545053696,-641.52,0.00054794,120]
[320749681,1711545053706,-9005.78,0.00054794,120]
[320749682,1711545053716,-2619.34,0.00054794,120]
[320749683,1711545053727,-500.0,0.00054794,120]
[320749684,1711545053736,-500.0,0.00054794,120]
[320749685,1711545053745,-500.0,0.00054794,120]
[320749686,1711545053754,-4819.76,0.00054794,120]
[320749687,1711545053764,-500.0,0.00054794,120]
[320749688,1711545053773,-595.36,0.00054794,120]
[320749689,1711545053782,-500.0,0.00054794,120]
[320749690,1711545053791,-3188.02,0.00054794,120]
[320749691,1711545053801,-4918.59,0.00054794,120]
[320749692,1711545053810,-500.0,0.00054794,120]
[320749693,1711545053819,-3264.58,0.00054794,120]
[320749694,1711545053828,-2720.41,0.00054794,120]
[320749695,1711545053838,-1357.49,0.00054794,120]
[320749696,1711545053848,-616.58,0.00054794,120]
[320749697,1711545053857,-505.45463998,0.00054794,120]
[320749698,1711545053867,-500.0,0.00054794,120]
[320749699,1711545053881,-500.0,0.00054794,120]
[320749700,1711545053891,-611.94,0.00054794,120]
[320749701,1711545053900,-511.18,0.00054794,120]
[320749702,1711545053910,-500.0,0.00054794,120]
[320749703,1711545053921,-1000.0,0.00054794,14]
[320749704,1711545053931,-500.0,0.00054794,120]
[320749705,1711545053941,-5095.68,0.00054794,120]
[320749706,1711545053951,-4056.72,0.00054794,120]
[320749707,1711545053961,-8837.31,0.00054794,120]
[320749708,1711545053971,-1076.16,0.00054794,120]
[320749709,1711545053981,-2391.62,0.00054794,120]
[320749710,1711545053990,-500.0,0.00054794,120]
[320749711,1711545054000,-528.46,0.00054794,120]
[320749712,1711545054011,-1376.44,0.00054794,120]
[320749713,1711545054022,-2516.81,0.00054794,120]
[320749714,1711545054033,-500.0,0.00054794,120]
[320749715,1711545054044,-41305.17,0.00054794,120]
[320749716,1711545054054,-3046.15,0.00054794,120]
[320749717,1711545054065,-835.27,0.00054794,120]
[320749718,1711545054075,-5486.9,0.00054794,120]
[320749719,1711545054086,-2405.09,0.00054794,120]
[320749720,1711545054097,-500.0,0.00054794,120]
[320749721,1711545054109,-1426.57,0.00054794,120]
[320749722,1711545054124,-500.0,0.00054794,120]
[320749723,1711545054138,-2003.76,0.00054794,120]
[320749724,1711545054150,-500.0,0.00054794,120]
[320749725,1711545054164,-5722.98,0.00054794,120]
[320749726,1711545054175,-844.73,0.00054794,120]
[320749727,1711545054187,-500.0,0.00054794,120]
[320749728,1711545054199,-993.46,0.00054794,120]
[320749729,1711545054210,-6090.95,0.00054794,120]
[320749730,1711545054221,-1283.48,0.00054794,120]
[320749731,1711545054232,-500.0,0.00054794,120]
[320749732,1711545054243,-985.29,0.00054794,120]
[320749733,1711545054254,-500.0,0.00054794,120]
[320749734,1711545054267,-500.0,0.00054794,120]
[320749735,1711545054279,-671.24,0.00054794,120]
[320749736,1711545054291,-500.0,0.00054794,120]
[320749737,1711545054303,-2372.43,0.00054794,120]
[320749738,1711545054313,-500.0,0.00054794,120]
[320749739,1711545054325,-2269.62,0.00054794,120]
[320749740,1711545054336,-3926.77,0.00054794,120]
[320749741,1711545054347,-3735.27,0.00054794,120]
[320749742,1711545054359,-6290.77,0.00054794,120]
[320749743,1711545054372,-500.0,0.00054794,120]
[320749744,1711545054388,-4585.67,0.00054794,120]
[320749745,1711545054398,-13466.38,0.00054794,120]
[320749746,1711545054409,-1447.6,0.00054794,120]
[320749747,1711545054420,-500.0,0.00054794,120]
[320749748,1711545054431,-500.0,0.00054794,120]
[320749749,1711545054442,-1646.74,0.00054794,120]
[320749750,1711545054460,-500.0,0.00054794,120]
[320749751,1711545054471,-3987.19,0.00054794,120]
[320749752,1711545054483,-2105.18,0.00054794,120]
[320749753,1711545054494,-527.29,0.00054794,120]
[320749754,1711545054505,-1059.25,0.00054794,120]
[320749755,1711545054723,-500.0,0.00054794,120]
[320749756,1711545054734,-6467.88,0.00054794,120]
[320749757,1711545054745,-1043.38,0.00054794,120]
[320749758,1711545054755,-5114.35,0.00054794,120]
[320749759,1711545054767,-500.0,0.00054794,120]
[320749760,1711545054777,-3638.16,0.00054794,120]
[320749761,1711545054788,-500.0,0.00054794,120]
[320749762,1711545054798,-5717.55,0.00054794,120]
[320749763,1711545054808,-1695.49,0.00054794,120]
[320749764,1711545054819,-500.0,0.00054794,120]
[320749765,1711545054830,-3104.92,0.00054794,120]
[320749766,1711545054841,-500.0,0.00054794,120]
[320749767,1711545054852,-500.0,0.00054794,120]
[320749768,1711545054863,-500.0,0.00054794,120]
[320749769,1711545054874,-710.05,0.00054794,120]
[320749770,1711545054884,-500.0,0.00054794,120]
[320749771,1711545054894,-9267.85,0.00054794,120]
[320749772,1711545054904,-7768.64,0.00054794,120]
[320749773,1711545054914,-1454.41,0.00054794,120]
[320749774,1711545054925,-1055.59,0.00054794,120]
[320749775,1711545054936,-791.84,0.00054794,120]
[320749776,1711545054945,-1055.59,0.00054794,120]
[320749777,1711545054955,-5542.26,0.00054794,120]
[320749778,1711545054965,-1055.59,0.00054794,120]
[320749779,1711545054975,-1055.59,0.00054794,120]
[320749780,1711545054984,-51213.0,0.00054794,120]
[320749781,1711545054994,-500.0,0.00054794,120]
[320749782,1711545055004,-1055.59,0.00054794,120]
[320749783,1711545055018,-1055.59,0.00054794,120]
[320749784,1711545055028,-1055.59,0.00054794,120]
[320749785,1711545055038,-1055.59,0.00054794,120]
[320749786,1711545055048,-621.84,0.00054794,120]
[320749787,1711545055058,-500.0,0.00054794,120]
[320749788,1711545055068,-1055.59,0.00054794,120]
[320749789,1711545055078,-947.8,0.00054794,120]
[320749790,1711545055088,-3395.08,0.00054794,120]
[320749791,1711545055098,-231.10619195,0.00054794,120]
[320749792,1711545055108,-5893.22,0.00054794,120]
[320749793,1711545055117,-1055.59,0.00054794,120]
[320749794,1711545055129,-500.0,0.00054794,120]
[320749795,1711545055138,-1055.59,0.00054794,120]
[320749796,1711545055148,-1055.59,0.00054794,120]
[320749797,1711545055158,-1055.59,0.00054794,120]
[320749798,1711545055168,-1055.59,0.00054794,120]
[320749799,1711545055178,-1055.59,0.00054794,120]
[320749800,1711545055189,-1055.59,0.00054794,120]
[320749801,1711545055198,-1055.59,0.00054794,120]
[320749802,1711545055209,-4278.93,0.00054794,120]
[320749803,1711545055218,-1055.59,0.00054794,120]
[320749804,1711545055229,-1055.59,0.00054794,120]
[320749805,1711545055241,-500.0,0.00054794,120]
[320749806,1711545055252,-500.0,0.00054794,120]
[320749807,1711545055264,-1055.59,0.00054794,120]
[320749808,1711545055276,-31450.21,0.00054794,120]
[320749809,1711545055287,-1055.59,0.00054794,120]
[320749810,1711545055298,-1055.59,0.00054794,120]
[320749811,1711545055310,-1055.59,0.00054794,120]
[320749812,1711545055321,-1055.68,0.00054794,120]
[320749813,1711545055332,-500.0,0.00054794,120]
[320749814,1711545055344,-502.65433627,0.00054794,120]
[320749815,1711545055356,-5909.33,0.00054794,120]
[320749816,1711545055368,-518.71,0.00054794,120]
[320749817,1711545055383,-614.55,0.00054794,120]
[320749818,1711545055395,-5023.68,0.00054794,120]
[320749819,1711545055405,-2654.52,0.00054794,120]
[320749820,1711545055416,-500.0,0.00054794,120]
[320749821,1711545055426,-500.0,0.00054794,120]
[320749822,1711545055437,-8389.13,0.00054794,120]
[320749823,1711545055447,-500.0,0.00054794,120]
[320749824,1711545055457,-1079.12,0.00054794,120]
[320749825,1711545055467,-627.77,0.00054794,120]
[320749826,1711545055479,-2857.46,0.00054794,120]
[320749827,1711545055489,-500.0,0.00054794,120]
[320749828,1711545055500,-500.0,0.00054794,120]
[320749829,1711545055510,-908.56,0.00054794,120]
[320749830,1711545055520,-500.0,0.00054794,120]
[320749831,1711545055530,-15730.44,0.00054794,120]
[320749832,1711545055540,-500.0,0.00054794,120]
[320749833,1711545055551,-500.0,0.00054794,7]
[320749834,1711545055561,-500.0,0.00054794,120]
[320749835,1711545055571,-501.77508693,0.00054794,120]
[320749836,1711545055581,-500.0,0.00054794,120]
[320749837,1711545055592,-17684.62,0.00054794,120]
[320749838,1711545055603,-2505.02,0.00054794,120]
[320749839,1711545055614,-1883.86,0.00054794,120]
[320749840,1711545055628,-15538.1,0.00054794,120]
[320749841,1711545055639,-1991.17,0.00054794,120]
[320749842,1711545055649,-500.0,0.00054794,120]
[320749843,1711545055659,-3746.02,0.00054794,120]
[320749844,1711545055669,-696.66,0.00054794,120]
[320749845,1711545055680,-20423.54,0.00054794,120]
[320749846,1711545055690,-500.0,0.00054794,120]
[320749847,1711545055700,-2000.0,0.00054794,120]
[320749848,1711545055711,-3284.59,0.00054794,120]
[320749849,1711545055722,-505.60188997,0.00054794,120]
[320749850,1711545055734,-500.0,0.00054794,120]
[320749851,1711545055745,-4345.76,0.00054794,120]
[320749852,1711545055756,-2934.36,0.00054794,120]
[320749853,1711545055768,-4666.84,0.00054794,21]
[320749854,1711545055779,-2466.29,0.00054794,120]
[320749855,1711545055790,-500.0,0.00054794,65]
[320749856,1711545055801,-3005.61,0.00054794,120]
[320749857,1711545055813,-734.73,0.00054794,120]
[320749858,1711545055824,-5243.53,0.00054794,120]
[320749859,1711545055836,-500.0,0.00054794,120]
[320749860,1711545055849,-500.0,0.00054794,120]
[320749861,1711545055860,-502.67601051,0.00054794,2]
[320749862,1711545055872,-1272.81,0.00054794,120]
[320749863,1711545055891,-7682.89,0.00054794,120]
[320749864,1711545055903,-500.0,0.00054794,120]
[320749865,1711545055913,-2956.88,0.00054794,120]
[320749866,1711545055926,-506.0760227,0.00054794,120]
[320749867,1711545055937,-500.0,0.00054794,120]
[320749868,1711545055949,-893.14,0.00054794,120]
[320749869,1711545055960,-500.0,0.00054794,120]
[320749870,1711545055971,-11376.4,0.00054794,120]
[320749871,1711545055982,-8065.37,0.00054794,120]
[320749872,1711545055994,-1965.98,0.00054794,120]
[320749873,1711545056006,-1547.28,0.00054794,120]
[320749874,1711545056020,-500.0,0.00054794,120]
[320749875,1711545056034,-508.08831004,0.00054794,120]
[320749876,1711545056051,-11227.74,0.00054794,120]
[320749877,1711545056068,-1169.22,0.00054794,120]
[320749878,1711545056078,-1550.86,0.00054794,120]
[320749879,1711545056097,-1389.24,0.00054794,120]
[320749880,1711545056110,-500.0,0.00054794,120]
[320749881,1711545056120,-2427.55,0.00054794,120]
[320749882,1711545056133,-500.0,0.00054794,120]
[320749883,1711545056143,-812.47,0.00054794,120]
[320749884,1711545056153,-937.62,0.00054794,120]
[320749885,1711545056162,-621.57,0.00054794,120]
[320749886,1711545056172,-548.55,0.00054794,120]
[320749887,1711545056182,-3287.18,0.00054794,120]
[320749888,1711545056191,-500.0,0.00054794,120]
[320749889,1711545056202,-2626.7,0.00054794,120]
[320749890,1711545056211,-1103.29,0.00054794,120]
[320749891,1711545056223,-2273.64,0.00054794,120]
[320749892,1711545056234,-506.31798265,0.00054794,120]
[320749893,1711545056244,-2808.51,0.00054794,120]
[320749894,1711545056254,-1998.34,0.00054794,120]
[320749895,1711545056265,-283.65822838,0.00054794,2]
[320749896,1711545056276,-500.0,0.00054794,120]
[320749897,1711545056286,-500.0,0.00054794,120]
[320749898,1711545056297,-593.53,0.00054794,120]
[320749899,1711545056307,-6582.74,0.00054794,120]
[320749900,1711545056318,-500.0,0.00054794,120]
[320749901,1711545056328,-919.65,0.00054794,120]
[320749902,1711545056338,-826.55,0.00054794,120]
[320749903,1711545056348,-500.0,0.00054794,120]
[320749904,1711545056358,-3143.51,0.00054794,120]
[320749905,1711545056368,-500.0,0.00054794,120]
[320749906,1711545056382,-847.53,0.00054794,120]
[320749907,1711545056392,-301.85,0.00054794,120]
[320749908,1711545056402,-500.74956829,0.00054794,120]
[320749909,1711545056412,-500.0,0.00054794,85]
[320749910,1711545056422,-535.77,0.00054794,120]
[320749911,1711545056590,-2687.32,0.00054794,120]
[320749912,1711545056601,-500.0,0.00054794,120]
[320749913,1711545056610,-1000.0,0.00054795,13]
[320749914,1711545056620,-1000.0,0.00054795,13]
[320749915,1711545056632,-1000.0,0.00054795,13]
[320749916,1711545056641,-1000.0,0.00054795,13]
[320749917,1711545056651,-1000.0,0.00054795,13]
[320749918,1711545056660,-1000.0,0.00054795,13]
[320749919,1711545056669,-1000.0,0.00054795,13]
[320749920,1711545056678,-1000.0,0.00054795,13]
[320749921,1711545056688,-1000.0,0.00054795,13]
[320749922,1711545056698,-1000.0,0.00054795,13]
[320749923,1711545056707,-1000.0,0.00054795,13]
[320749924,1711545056716,-1000.0,0.00054795,13]
[320749925,1711545056725,-1000.0,0.00054795,13]
[320749926,1711545056734,-1000.0,0.00054795,13]
[320749927,1711545056743,-1000.0,0.00054795,13]
[320749928,1711545056752,-1000.0,0.00054795,13]
[320749929,1711545056762,-1000.0,0.00054795,13]
[320749930,1711545056771,-1000.0,0.00054795,13]
[320749931,1711545056780,-1000.0,0.00054795,13]
[320749932,1711545056789,-1000.0,0.00054795,13]
[320749933,1711545056798,-1000.0,0.00054795,13]
[320749934,1711545056808,-1000.0,0.00054795,13]
[320749935,1711545056818,-1000.0,0.00054795,13]
[320749936,1711545056827,-1000.0,0.00054795,13]
[320749937,1711545056837,-1000.0,0.00054795,13]
[320749938,1711545056848,-1000.0,0.00054795,13]
[320749939,1711545056858,-1000.0,0.00054795,13]
[320749940,1711545056868,-1000.0,0.00054795,13]
[320749941,1711545056880,-973.0,0.00054795,13]
[320749942,1711545056889,-970.0,0.00054795,120]
[320749943,1711545056899,-918.0,0.00054795,120]
[320749944,1711545056909,-6176.39,0.00054795,120]
[320749945,1711545056919,-1000.0,0.00054795,120]
[320749946,1711545056929,-1000.0,0.00054795,120]
[320749947,1711545056938,-173.032721,0.00054798,107]
[320749948,1711545056947,-4000.0,0.000548,120]
[320749949,1711545056957,-4821.24114706,0.000549,120]
[320749950,1711545056966,-300.29715877,0.000549,32]
[320749951,1711545056976,-594.87826908,0.00054907,60]
[320749952,1711545056986,-163.57700478,0.00054959,60]
[320749953,1711545056996,-203.31808541,0.00054997,2]
[320749954,1711545057006,-1999.999999,0.00055,5]
[320749955,1711545057016,-12031.57638013,0.00055,30]
[320749956,1711545057026,-77058.403051,0.00055,30]
[320749957,1711545057035,-3600.0,0.00055,120]
[320749958,1711545057044,-105956.24333026,0.00055,30]
[320749959,1711545057057,-34306.88968509,0.00055,30]
[320749960,1711545057068,-15833.29561769,0.00055,14]
[320749961,1711545057077,-410.0,0.00055,120]
[320749962,1711545057087,-8149.06608272,0.00055,2]
[320749963,1711545057096,-3166.0,0.00055,120]
[320749964,1711545057106,-49659.25616736,0.00055,30]
[320749965,1711545057115,-211272.16265562,0.00055,30]
[320749966,1711545057126,-2343.13530962,0.00055,120]
[320749967,1711545057137,-422.8,0.00055,30]
[320749968,1711545057146,-155.71,0.00055,8]
[320749969,1711545057156,-155.71,0.00055,8]
[320749970,1711545057165,-155.71,0.00055,8]
[320749971,1711545057175,-2000.0,0.00055,30]
[320749972,1711545057185,-950.0,0.00055,3]
[320749973,1711545057195,-450.0,0.00055,57]
[320749974,1711545057204,-188.95455065,0.00055013,120]
[320749975,1711545057214,-1200.0,0.00055041,30]
[320749976,1711545057224,-3836.719838,0.00055044,30]
[320749977,1711545057233,-4795.899798,0.00055044,30]
[320749978,1711545057243,-959.179959,0.00055044,30]
[320749979,1711545057252,-959.17996,0.00055044,30]
[320749980,1711545057261,-959.179959,0.00055044,30]
[320749981,1711545057271,-167.006304,0.00055044,90]
[320749982,1711545057281,-153.43825922,0.00055053,120]
[320749983,1711545057291,-188.95455065,0.00055059,120]
[320749984,1711545057300,-171.56,0.00055068,120]
[320749985,1711545057310,-415.66,0.00055068,120]
[320749986,1711545057320,-500.0,0.00055068,120]
[320749987,1711545057329,-500.0,0.00055068,120]
[320749988,1711545057339,-500.0,0.00055068,120]
[320749989,1711545057349,-500.0,0.00055068,120]
[320749990,1711545057358,-573.08,0.00055068,120]
[320749991,1711545057368,-500.0,0.00055068,120]
[320749992,1711545057380,-500.0,0.00055068,120]
[320749993,1711545057390,-500.0,0.00055068,120]
[320749994,1711545057400,-500.0,0.00055068,120]
[320749995,1711545057410,-500.0,0.00055068,120]
[320749996,1711545057420,-537.16385715,0.00055068,120]
[320749997,1711545057430,-500.0,0.00055068,120]
[320749998,1711545057441,-500.0,0.00055068,120]
[320749999,1711545057451,-500.0,0.00055068,120]
[320750000,1711545057461,-500.0,0.00055068,120]
[320750001,1711545057471,-500.0,0.00055068,120]
[320750002,1711545057481,-500.0,0.00055068,120]